bitfinex/quotes_ETHUSD_20241231
["timestamp","ask_amount","ask_price","bid_price","bid_amount"]
[1735688181430,0.7825,3340.7,3340.1,2.99389]
[1735688181637,0.7825,3340.7,3339.9,3.76314]
[1735688181922,0.7825,3340.7,3339.9,2.99404]
[1735688182129,0.7825,3340.7,3339.9,3.67699663]
[1735688182331,1.00142051,3340.6,3339.9,3.67699663]
[1735688182489,1.78392051,3340.6,3339.9,3.67699663]
[1735688182686,1.78392051,3340.6,3340.0,2.994]
[1735688183826,1.00142051,3340.5,3340.0,2.994]
[1735688184131,1.00142051,3340.5,3340.0,3.36833829]
[1735688184329,0.7825,3340.4,3340.0,0.37433829]
[1735688184627,0.7825,3340.4,3339.8,2.99413]
[1735688186592,0.7825,3340.4,3339.9,2.99409]
[1735688187002,0.7825,3340.4,3339.7,0.0664263]
[1735688187003,0.7825,3340.4,3339.7,3.0606663]
[1735688187892,0.7825,3340.4,3339.7,0.0664263]
[1735688188195,0.7825,3340.2,3339.7,0.0664263]
[1735688191233,2.72249049,3340.0,3339.7,0.0664263]
[1735688191418,0.7825,3339.8,3339.7,0.0664263]
[1735688191731,2.99419,3339.8,3339.7,0.0664263]
[1735688191921,7.4483933,3339.8,3339.7,0.0664263]
[1735688193434,0.7975,3338.9,3338.0,1.2576112]
[1735688193638,2.72249049,3338.8,3338.0,1.2576112]
[1735688193820,1.36924105,3338.7,3338.0,1.2576112]
[1735688194020,1.36924105,3338.7,3337.8,1.88690569]
[1735688194021,1.36924105,3338.7,3337.7,1.2576112]
[1735688194252,1.36924105,3338.7,3337.8,2.99597]
[1735688195425,0.7975,3338.6,3337.8,2.99597]
[1735688196172,0.7975,3338.6,3337.7,1.2576112]
[1735688196173,0.7975,3338.6,3337.6,2.99615]
[1735688196472,0.70869515,3338.5,3337.6,2.99615]
[1735688197983,0.70869515,3338.5,3337.8,2.99596]
[1735688198176,0.7975,3338.6,3337.9,2.99588]
[1735688198377,0.7975,3338.6,3338.0,2.99577]
[1735688198545,0.7975,3338.6,3337.9,2.72249049]
[1735688198875,1.25148871,3339.1,3338.8,2.99505]
[1735688199027,1.25148871,3339.1,3338.8,2.72249049]
[1735688199234,1.25148871,3339.1,3339.0,2.9949]
[1735688199870,3.93319387,3339.6,3339.0,2.9949]
[1735688199871,0.7975,3339.6,3339.0,2.9949]
[1735688200075,0.7975,3339.6,3338.8,2.99504]
[1735688201374,0.7975,3339.6,3338.5,5.99531]
[1735688201375,0.7975,3339.4,3338.5,2.99531]
[1735688201971,3.7975,3339.4,3338.5,2.99531]
[1735688205120,0.7975,3339.4,3338.6,2.99526]
[1735688205294,0.7975,3339.4,3338.7,2.99515]
[1735688206195,0.7975,3339.4,3338.2,2.72249049]
[1735688206505,0.7975,3339.3,3338.4,2.99537]
[1735688206719,0.7975,3339.2,3338.4,2.99537]
[1735688207217,0.7975,3339.2,3338.4,2.99536]
[1735688209018,0.7975,3339.2,3338.0,0.7767]
[1735688209184,2.99484,3339.1,3338.0,2.99577]
[1735688209426,0.7649,3339.0,3338.0,2.99577]
[1735688209628,0.7649,3338.8,3337.8,2.99594]
[1735688210134,2.99512,3338.8,3337.8,2.99594]
[1735688210358,0.7649,3338.7,3337.8,2.99594]
[1735688210655,0.376002,3338.6,3337.8,2.99594]
[1735688211318,0.376002,3338.6,3337.9,2.99587]
[1735688211518,0.7649,3338.7,3337.9,2.99587]
[1735688212353,0.7649,3338.7,3337.6,2.72249049]
[1735688212512,0.7649,3338.7,3338.1,2.99568]
[1735688215554,0.7649,3338.7,3337.9,2.99585]
[1735688216760,0.7649,3338.7,3338.0,2.99578]
[1735688216981,1.440884,3338.7,3338.0,2.99578]
[1735688217457,0.7649,3338.6,3337.8,2.99591]
[1735688217670,0.7649,3338.6,3337.6,2.72249049]
[1735688218017,0.7649,3338.6,3337.9,2.99587]
[1735688218608,0.7649,3338.6,3337.6,2.72249049]
[1735688218882,0.7649,3338.6,3338.2,2.99559]
[1735688221274,0.7649,3338.6,3337.7,0.27224905]
[1735688221648,0.7649,3338.6,3338.2,2.99559]
[1735688222158,0.7649,3338.6,3338.0,2.99576]
[1735688223587,0.7649,3338.6,3337.8,2.99591]
[1735688223772,1.140907,3338.6,3337.8,2.99591]
[1735688223972,0.7649,3338.6,3337.8,2.99591]
[1735688224495,0.7649,3338.6,3337.9,2.99584]
[1735688224793,0.7649,3338.6,3338.0,2.99579]
[1735688225594,0.7649,3338.6,3337.8,2.99594]
[1735688226492,0.7649,3338.6,3337.6,2.99609]
[1735688226690,0.8259,3338.5,3337.7,2.99607]
[1735688226903,0.8259,3338.4,3337.7,2.99607]
[1735688229509,0.8259,3338.4,3337.8,2.99598]
[1735688230806,0.8259,3338.4,3337.4,0.55]
[1735688230961,1.25148871,3338.9,3338.7,2.99517]
[1735688230962,0.8146,3338.8,3338.7,2.99517]
[1735688231169,1.25148871,3338.9,3338.0,3.5458]
[1735688231170,1.25148871,3338.9,3338.8,2.99508]
[1735688231993,1.25148871,3338.9,3338.8,4.64456905]
[1735688232423,1.25148871,3339.5,3339.4,2.99454]
[1735688233529,1.25148871,3340.1,3339.9,2.99406]
[1735688234224,1.25148871,3340.1,3339.7,2.99425]
[1735688234799,0.64560601,3340.1,3339.4,2.99446]
[1735688234999,0.8146,3340.4,3339.5,2.99443]
[1735688235206,0.8146,3340.4,3339.2,3.0]
[1735688235388,1.25148871,3340.6,3339.1,5.71727049]
[1735688235389,0.8146,3340.2,3339.1,2.99481]
[1735688235594,0.8146,3340.2,3339.0,0.7782]
[1735688236007,0.8146,3340.2,3339.2,2.99465]
[1735688236193,0.380834,3340.1,3339.2,2.99465]
[1735688236808,0.8146,3340.0,3339.0,2.99488]
[1735688237005,3.80876,3339.9,3338.9,2.99492]
[1735688237191,0.4189594,3339.8,3339.0,2.99489]
[1735688237392,0.4189594,3339.8,3338.5,2.72249049]
[1735688237596,0.8146,3339.9,3339.2,2.9947]
[1735688237918,2.69420797,3340.0,3339.6,2.99432]
[1735688238307,2.69420797,3340.0,3338.9,6.75471]
[1735688238513,2.69420797,3340.0,3339.5,2.99439]
[1735688238729,1.25148871,3340.0,3339.5,2.99439]
[1735688239941,1.25148871,3340.0,3338.9,0.7598]
[1735688239942,0.7818,3340.2,3339.2,2.99464]
[1735688240241,0.81654414,3340.1,3339.2,2.99464]
[1735688240741,0.7818,3340.0,3339.3,2.99462]
[1735688241142,0.7818,3340.0,3339.4,2.99452]
[1735688243191,0.7818,3340.0,3339.1,2.99478]
[1735688243392,0.7818,3340.0,3339.2,0.71028091]
[1735688244463,0.7818,3340.0,3339.4,2.99451]
[1735688244987,0.7818,3340.0,3339.2,2.99471]
[1735688246780,0.7818,3340.0,3339.0,0.34822905]
[1735688246999,0.7818,3339.9,3339.0,2.99486]
[1735688247179,0.377583,3339.8,3339.0,2.99486]
[1735688249100,0.8113,3339.7,3339.0,2.99486]
[1735688249998,0.8113,3339.7,3338.5,2.99528]
[1735688249999,2.99455,3339.4,3338.5,2.99528]
[1735688250155,2.99455,3339.4,3338.0,4.2533612]
[1735688250156,2.9949,3339.1,3338.0,4.2533612]
[1735688250362,0.8113,3338.9,3338.0,1.2576112]
[1735688250618,2.99519,3338.7,3337.9,1.2576112]
[1735688250834,0.8113,3338.6,3337.9,1.2576112]
[1735688251284,0.8113,3338.4,3337.9,1.2576112]
[1735688251610,1.191966,3338.4,3337.9,1.2576112]
[1735688252011,1.191966,3338.4,3337.2,3.7653]
[1735688252012,4.187436,3338.4,3337.2,3.7653]
[1735688252209,3.80677,3338.4,3337.4,2.99632]
[1735688252912,0.8113,3338.3,3337.4,2.99632]
[1735688253497,3.80687,3338.3,3337.2,2.99649]
[1735688253799,0.7823,3338.2,3337.2,2.99649]
[1735688254004,1.160087,3338.2,3337.3,2.99641]
[1735688254313,0.7823,3338.2,3337.3,2.99636]
[1735688255070,0.7823,3338.2,3337.4,2.72249049]
[1735688255777,0.7823,3338.2,3337.6,2.99614]
[1735688258327,0.7823,3338.2,3337.4,2.72249049]
[1735688258503,0.7823,3338.2,3337.7,2.99601]
[1735688260748,0.7823,3338.2,3337.5,2.99623]
[1735688262241,1.160067,3338.2,3337.5,2.99623]
[1735688262440,0.7823,3338.0,3337.1,2.99657]
[1735688263006,0.7823,3337.7,3336.7,2.72249049]
[1735688263843,0.7823,3337.7,3336.8,2.99684]
[1735688264733,5.99567,3338.2,3336.6,2.99702]
[1735688264734,0.7823,3337.5,3336.6,2.99702]
[1735688264928,0.377854,3337.4,3336.6,2.99702]
[1735688265135,0.7823,3337.3,3336.6,2.99702]
[1735688265849,0.7823,3337.3,3336.4,0.1699693]
[1735688265850,0.7823,3337.3,3336.7,2.99695]
[1735688266249,0.7823,3337.3,3337.0,2.99667]
[1735688266435,0.7823,3337.3,3336.8,2.99687]
[1735688266631,0.7823,3337.3,3336.5,5.71962049]
[1735688266947,0.7823,3337.3,3336.9,2.99678]
[1735688272051,0.7823,3337.3,3337.1,2.99657]
[1735688272413,0.8254,3337.6,3337.3,2.99642]
[1735688272619,0.8254,3338.1,3337.5,2.99625]
[1735688273046,0.8254,3338.1,3337.1,2.72249049]
[1735688273312,0.8254,3338.1,3337.8,2.9959]
[1735688274421,0.8254,3338.1,3337.6,2.99611]
[1735688274757,0.8254,3338.1,3337.7,2.996]
[1735688276452,0.8254,3338.1,3337.2,3.80531]
[1735688276655,0.8254,3338.1,3337.6,2.99613]
[1735688277221,0.8254,3338.1,3337.4,2.99633]
[1735688277657,0.8254,3338.1,3337.0,2.99668]
[1735688277826,0.8254,3338.0,3336.9,3.8088]
[1735688278031,0.8254,3338.0,3337.4,2.99632]
[1735688278255,1.2075,3338.0,3337.4,2.99632]
[1735688279534,0.8254,3337.9,3336.6,0.8088]
[1735688279732,0.8254,3337.9,3337.0,2.99662]
[1735688279733,2.99589,3337.9,3337.0,2.99662]
[1735688279944,0.8254,3337.8,3337.0,2.99662]
[1735688283264,0.8254,3337.8,3337.1,2.99659]
[1735688283563,0.8254,3337.8,3337.4,2.99626]
[1735688283741,0.8254,3337.8,3337.0,0.8133]
[1735688284061,0.8254,3337.8,3337.5,2.99619]
[1735688284247,0.8254,3337.8,3337.2,2.99646]
[1735688284489,0.8254,3337.8,3337.7,2.99607]
[1735688284653,0.8048,3338.2,3337.7,2.99607]
[1735688289052,2.99527,3338.6,3337.1,3.37606954]
[1735688289053,0.8048,3338.6,3337.4,2.72249049]
[1735688289253,1.25148871,3338.7,3337.1,0.65357905]
[1735688289254,1.25148871,3338.7,3338.0,0.55]
[1735688289629,1.25148871,3338.7,3337.9,0.8133]
[1735688289630,1.25148871,3338.7,3338.5,2.99533]
[1735688289831,2.05628871,3338.8,3338.3,2.9955]
[1735688290180,2.05628871,3338.8,3338.0,2.99573]
[1735688290501,2.05628871,3338.8,3338.0,0.380903]
[1735688290678,2.05628871,3338.8,3338.4,2.99538]
[1735688290877,1.25148871,3338.8,3338.4,2.99538]
[1735688291195,0.8048,3338.7,3337.7,2.99598]
[1735688291332,0.8048,3338.7,3338.1,2.99564]
[1735688291531,1.30991987,3338.7,3338.1,2.99564]
[1735688291935,1.30991987,3338.7,3337.6,0.8133]
[1735688292244,1.30991987,3338.7,3338.0,2.99578]
[1735688293060,1.30991987,3338.7,3337.6,3.80944]
[1735688293061,2.4774621,3338.6,3337.7,0.55]
[1735688293247,2.4774621,3338.6,3338.3,2.99546]
[1735688294349,0.8048,3338.7,3338.3,2.99546]
[1735688295062,0.8048,3338.7,3338.1,2.99568]
[1735688295659,0.8048,3338.7,3338.2,2.99562]
[1735688296673,1.4985705,3338.7,3337.7,2.99607]
[1735688296874,0.9930448,3338.6,3338.0,2.99577]
[1735688297802,2.24453351,3338.6,3338.0,2.99577]
[1735688298898,2.48275205,3338.6,3338.0,2.99577]
[1735688299331,2.48275205,3338.6,3338.1,0.55]
[1735688299626,0.98512205,3338.6,3338.5,7.31545]
[1735688299918,7.08e-06,3338.8,3338.7,4.31527]
[1735688300058,7.08e-06,3338.8,3338.7,7.03776049]
[1735688301418,7.08e-06,3338.8,3338.7,10.03776049]
[1735688301585,7.08e-06,3338.8,3338.7,11.34107154]
[1735688301928,0.8284,3339.6,3339.1,2.99475]
[1735688302264,0.8284,3339.6,3338.7,8.34590154]
[1735688302500,0.8284,3339.6,3339.2,2.99472]
[1735688304214,0.65349387,3339.6,3339.2,2.99472]
[1735688304702,0.65349387,3339.6,3339.0,2.9949]
[1735688304868,2.99431,3339.7,3338.8,2.99505]
[1735688305069,3.0,3339.7,3338.1,3.76579]
[1735688305266,2.99462,3339.4,3338.3,2.99547]
[1735688305565,2.9947,3339.3,3338.3,2.99547]
[1735688305765,2.9947,3339.3,3338.4,2.99543]
[1735688306010,2.99449,3339.5,3338.5,2.99527]
[1735688306567,2.99449,3339.5,3338.6,2.99523]
[1735688306867,5.9943,3339.7,3338.4,0.376553]
[1735688307074,0.8284,3339.6,3338.4,0.376553]
[1735688307280,0.8284,3339.6,3339.0,2.99484]
[1735688307516,0.8284,3339.6,3339.2,2.99465]
[1735688309046,0.8284,3339.6,3339.3,2.99462]
[1735688309219,0.8284,3339.6,3339.1,3.294274]
[1735688310053,0.8284,3339.6,3339.1,0.299484]
[1735688310185,0.8284,3339.6,3338.8,2.99507]
[1735688310984,2.72249049,3339.8,3338.6,2.99523]
[1735688311229,0.8284,3339.4,3338.6,2.99523]
[1735688312112,0.8284,3339.4,3338.4,0.376553]
[1735688312113,0.8284,3339.3,3338.4,3.371943]
[1735688312825,0.8284,3339.3,3338.6,2.99526]
[1735688313411,0.8284,3339.3,3338.4,0.376553]
[1735688313596,0.8284,3339.3,3338.4,3.371973]
[1735688313803,3.82305,3339.3,3338.4,3.371973]
[1735688314003,4.205355,3339.3,3338.4,3.371973]
[1735688314714,1.210705,3339.3,3338.5,2.99532]
[1735688314901,0.8284,3339.3,3338.5,2.99532]
[1735688322738,0.8284,3339.3,3338.6,2.9952]
[1735688326504,0.8284,3339.3,3338.5,1.3341]
[1735688326711,1.25224925,3339.5,3339.3,2.99463]
[1735688326918,1.25224925,3339.5,3339.4,0.377873]
[1735688327914,0.7882,3339.8,3339.4,0.377873]
[1735688328839,0.7882,3339.8,3338.7,0.7841]
[1735688329041,3.7824,3339.8,3338.9,2.99497]
[1735688330034,0.7882,3339.8,3338.9,2.99497]
[1735688330344,0.7882,3339.8,3339.1,2.99479]
[1735688331445,0.7882,3339.8,3338.9,2.99492]
[1735688331618,2.99447,3339.5,3338.5,2.99527]
[1735688331803,3.79506,3339.4,3338.5,2.99527]
[1735688332746,0.8005,3339.3,3338.5,2.99527]
[1735688333472,2.05274925,3339.3,3338.5,2.99527]
[1735688333657,2.05274925,3339.3,3338.6,0.3371823]
[1735688334659,1.25224925,3339.2,3338.6,0.3371823]
[1735688336062,1.25224925,3339.2,3338.6,3.3324123]
[1735688336254,1.25224925,3339.2,3338.6,0.3371823]
[1735688336427,1.25224925,3339.2,3338.4,0.376553]
[1735688336628,1.25224925,3339.2,3338.6,2.99519]
[1735688337246,1.25224925,3339.2,3338.7,2.99516]
[1735688337563,1.25224925,3339.2,3338.7,2.99511]
[1735688337872,0.8005,3339.3,3338.7,2.99511]
[1735688338182,0.8005,3339.3,3338.5,2.9953]
[1735688338832,0.8005,3339.3,3338.4,0.376553]
[1735688339035,0.8005,3339.3,3338.7,2.99516]
[1735688339371,0.8005,3339.3,3338.7,2.99512]
[1735688342929,0.8005,3339.3,3338.4,3.371973]
[1735688343129,1.25224925,3339.4,3338.8,0.826]
[1735688343330,1.25224925,3339.4,3339.2,2.99464]
[1735688343966,1.25224925,3339.4,3339.0,2.99485]
[1735688344296,1.25224925,3339.4,3338.8,0.826]
[1735688344587,1.25224925,3339.4,3339.0,2.99483]
[1735688344745,1.25224925,3339.4,3339.0,3.67643]
[1735688344945,2.05274925,3339.7,3339.0,3.67643]
[1735688346272,1.25224925,3339.6,3339.0,3.67643]
[1735688346776,1.25224925,3339.6,3339.1,2.99478]
[1735688351389,1.25224925,3339.6,3339.0,1.88134]
[1735688351563,1.25224925,3339.6,3339.0,0.6816]
[1735688351964,0.7977,3339.5,3338.9,1.199776]
[1735688352235,0.7977,3339.5,3338.7,2.99512]
[1735688352402,0.7977,3339.4,3338.7,2.99512]
[1735688354398,1.25224925,3339.2,3338.7,2.99512]
[1735688355497,1.25224925,3339.2,3338.5,5.04083342]
[1735688355697,0.7977,3339.1,3338.5,3.84089842]
[1735688355935,0.7977,3339.1,3338.5,2.99534]
[1735688356674,0.7977,3339.1,3338.6,2.99525]
[1735688356875,1.25224925,3339.0,3338.6,2.99525]
[1735688357976,0.7977,3339.1,3338.6,2.99525]
[1735688358518,0.7977,3339.1,3338.8,2.99504]
[1735688360406,1.25224925,3339.2,3338.9,2.99497]
[1735688360618,2.00674925,3339.4,3338.9,2.99497]
[1735688361248,2.00674925,3339.4,3338.7,0.7761]
[1735688361385,2.00674925,3339.4,3339.1,2.99481]
[1735688361811,2.00674925,3339.4,3338.7,0.7761]
[1735688362121,2.00674925,3339.4,3338.9,2.99494]
[1735688362320,2.00674925,3339.4,3339.0,2.99488]
[1735688364088,2.00674925,3339.4,3338.8,2.99504]
[1735688365821,1.25224925,3339.3,3338.8,2.99504]
[1735688367530,1.25224925,3339.3,3338.9,2.99497]
[1735688367698,1.25224925,3339.3,3338.9,3.294467]
[1735688367901,1.25224925,3339.3,3338.9,0.299497]
[1735688368202,1.25224925,3339.3,3338.9,1.075597]
[1735688368434,1.25224925,3339.3,3339.1,2.99474]
[1735688369841,0.7545,3339.4,3339.1,2.99474]
[1735688374535,0.7545,3339.4,3338.9,3.294427]
[1735688375747,2.00674925,3339.4,3338.9,3.294427]
[1735688376943,2.00674925,3339.4,3338.6,1.2576112]
[1735688377109,2.00674925,3339.4,3338.6,4.2527912]
[1735688377311,2.00674925,3339.4,3338.7,2.99511]
[1735688378033,2.00674925,3339.4,3338.6,1.2576112]
[1735688378232,2.00674925,3339.4,3338.6,4.2527912]
[1735688378435,2.00674925,3339.4,3338.7,1.54107981]
[1735688378848,1.25224925,3339.2,3338.7,1.54107981]
[1735688379016,1.25224925,3339.2,3338.7,4.53624981]
[1735688381424,1.25224925,3339.2,3339.0,2.99483]
[1735688381649,1.25224925,3339.2,3339.1,2.99481]
[1735688381818,1.25224925,3339.2,3339.1,3.675439]
[1735688382937,1.25224925,3339.4,3339.3,2.99463]
[1735688385132,1.25224925,3339.5,3339.3,2.99463]
[1735688386171,1.25224925,3339.5,3339.2,2.99469]
[1735688386733,1.25224925,3339.5,3339.0,2.99488]
[1735688386935,0.8105,3339.4,3338.8,4.2526812]
[1735688387136,2.06274925,3339.4,3338.8,2.99507]
[1735688387564,2.06274925,3339.4,3338.7,4.2527812]
[1735688387771,2.06274925,3339.4,3338.8,2.99507]
[1735688388075,1.25224925,3339.2,3338.8,2.99507]
[1735688388754,1.25224925,3339.2,3338.5,1.2576112]
[1735688389074,0.7809,3339.1,3338.6,1.56308912]
[1735688390077,2.03314925,3339.1,3338.5,2.99527]
[1735688390249,2.03314925,3339.1,3338.6,2.99524]
[1735688390770,2.03314925,3339.1,3338.5,2.99534]
[1735688390975,2.67520851,3339.1,3338.3,4.2531112]
[1735688391272,2.67520851,3339.1,3338.5,1.56310844]
[1735688392439,1.25224925,3338.8,3338.4,2.99543]
[1735688393575,1.25224925,3338.8,3338.5,2.99534]
[1735688394002,1.25224925,3338.9,3338.5,2.99534]
[1735688394987,1.25224925,3338.9,3338.8,2.99508]
[1735688395203,1.25224925,3339.0,3338.9,2.99499]
[1735688395405,1.25224925,3339.0,3338.9,3.94510605]
[1735688395565,1.25224925,3339.0,3338.9,2.99499]
[1735688396173,1.25224925,3339.3,3338.9,2.99499]
[1735688396969,2.99483,3339.1,3338.5,1.2576112]
[1735688397171,2.99485,3339.1,3338.5,1.2576112]
[1735688397475,1.55594897,3339.0,3338.5,1.2576112]
[1735688397678,3.76995897,3339.0,3338.5,1.2576112]
[1735688397882,0.7809,3338.8,3338.5,1.2576112]
[1735688398904,1.25224925,3338.6,3338.0,2.99578]
[1735688399108,1.25224925,3338.6,3338.0,3.42111912]
[1735688399391,1.25224925,3338.6,3338.0,0.42533912]
[1735688400479,1.25224925,3338.6,3337.9,2.99587]
[1735688404217,1.25224925,3338.7,3337.9,2.99587]
[1735688404359,1.25224925,3338.7,3337.8,0.55]
[1735688404566,1.25224925,3338.7,3338.1,3.75074]
[1735688405125,1.25224925,3338.7,3338.1,0.7551]
[1735688405266,2.03314925,3338.8,3338.2,2.99559]
[1735688405467,2.03314925,3338.8,3338.3,0.375069]
[1735688406537,1.25224925,3338.9,3338.7,3.75027]
[1735688406829,1.25224925,3338.9,3338.8,2.99508]
[1735688407566,2.01274925,3339.4,3338.8,2.99508]
[1735688408183,2.01274925,3339.4,3338.9,2.99496]
[1735688408425,2.01274925,3339.4,3339.0,0.375006]
[1735688408861,0.7605,3339.4,3339.0,0.375006]
[1735688411382,1.25224925,3339.5,3339.0,0.375006]
[1735688411699,1.25224925,3339.5,3339.2,2.9947]
[1735688412508,1.25224925,3339.5,3339.2,0.7551]
[1735688412807,2.01274925,3339.7,3339.3,2.9946]
[1735688413302,2.01274925,3339.7,3339.4,2.99451]
[1735688415210,0.7605,3339.7,3339.4,2.99451]
[1735688417796,0.7605,3339.7,3339.2,0.7551]
[1735688417973,1.25224925,3339.8,3339.5,2.99439]
[1735688418317,1.25224925,3339.8,3339.6,0.299439]
[1735688418471,1.25224925,3339.8,3339.5,2.99439]
[1735688418673,1.25224925,3339.8,3339.5,2.72249049]
[1735688418895,9.25e-06,3339.8,3339.7,7.29558]
[1735688419111,3.13569387,3340.3,3340.2,0.7513]
[1735688419312,3.13569387,3340.3,3340.2,7.29513]
[1735688420109,3.13569387,3341.4,3340.2,4.3013]
[1735688420323,6.49873049,3341.3,3340.3,5.99372]
[1735688420526,0.7834,3341.1,3340.0,2.99401]
[1735688420849,0.7834,3341.1,3340.2,3.0]
[1735688421052,0.7834,3341.1,3340.3,2.99365]
[1735688423013,0.7834,3341.1,3340.5,2.99355]
[1735688424853,0.7834,3341.1,3340.5,0.7513]
[1735688425064,0.7834,3341.1,3340.6,2.99346]
[1735688425964,0.7834,3341.1,3340.4,0.55]
[1735688426268,0.7834,3341.1,3340.7,2.99337]
[1735688427036,0.7834,3341.1,3340.3,0.55]
[1735688427244,0.7834,3341.1,3340.6,2.9934]
[1735688427881,0.7834,3341.1,3340.4,2.99357]
[1735688428265,0.7834,3341.1,3340.5,2.99354]
[1735688428953,0.7834,3341.1,3339.9,0.7513]
[1735688429163,0.7834,3340.9,3339.6,0.7513]
[1735688429407,0.7834,3340.9,3339.6,1.950681]
[1735688429692,0.7834,3340.9,3339.7,3.0]
[1735688430018,0.7834,3340.9,3340.0,2.99394]
[1735688430781,0.7834,3340.9,3339.8,2.99416]
[1735688431097,0.7834,3340.9,3339.5,2.99439]
[1735688431098,0.7834,3340.5,3339.5,2.99439]
[1735688431256,0.7834,3340.5,3339.3,0.7513]
[1735688431457,0.7834,3340.5,3339.6,2.99435]
[1735688431656,0.7834,3340.4,3339.4,2.99448]
[1735688432101,0.7834,3340.4,3339.5,2.99443]
[1735688432391,0.07121122,3340.3,3339.5,2.99443]
[1735688432597,0.7834,3340.4,3339.5,3.369003]
[1735688432759,0.06509489,3340.2,3339.5,3.369003]
[1735688432954,0.06514309,3340.3,3339.5,3.369003]
[1735688433167,0.7834,3340.4,3339.5,3.369003]
[1735688433168,0.06504669,3340.1,3339.5,3.369003]
[1735688433352,0.06509489,3340.2,3339.5,3.369003]
[1735688433558,0.06499849,3340.0,3339.5,3.369003]
[1735688433902,0.06495029,3339.9,3339.5,3.369003]
[1735688434289,0.7834,3340.4,3339.5,3.369003]
[1735688434598,0.06490209,3339.8,3339.5,3.369003]
[1735688434759,0.7834,3340.4,3339.5,3.369003]
[1735688435191,0.06514309,3340.3,3339.5,3.369003]
[1735688437694,0.8333,3340.2,3339.1,2.99478]
[1735688437923,0.8333,3340.2,3339.4,2.99451]
[1735688438095,0.0648011,3340.1,3339.4,2.99451]
[1735688440144,0.8333,3340.0,3339.4,2.99451]
[1735688440511,0.0646922,3339.9,3339.4,2.99451]
[1735688442875,0.0646922,3339.9,3338.8,2.995]
[1735688442876,0.8333,3339.8,3338.8,2.995]
[1735688443007,0.89768319,3339.7,3338.8,2.995]
[1735688444052,0.89768319,3339.7,3338.9,2.99496]
[1735688445323,0.89768319,3339.7,3339.0,2.99489]
[1735688447155,0.89768319,3339.7,3339.1,2.9948]
[1735688450389,0.89768319,3339.7,3339.0,0.55]
[1735688450522,0.06438319,3339.7,3339.1,0.736083]
[1735688450841,0.804,3340.0,3339.3,2.99457]
[1735688451219,0.06385502,3339.9,3339.3,2.99457]
[1735688452047,0.06385502,3339.9,3339.2,0.55]
[1735688452344,0.06385502,3339.9,3339.4,2.99448]
[1735688452661,0.06385502,3339.9,3339.5,0.354448]
[1735688454546,0.06385502,3339.9,3339.4,2.99448]
[1735688455535,0.06385502,3339.9,3339.2,2.9947]
[1735688460266,0.06385502,3339.9,3339.4,2.99451]
[1735688462871,0.804,3340.0,3339.4,2.99451]
[1735688463069,0.06402114,3339.8,3339.4,2.99451]
[1735688463272,0.06406935,3339.9,3339.5,0.354451]
[1735688463455,0.06397294,3339.7,3339.5,0.354451]
[1735688463656,0.804,3340.0,3339.5,0.354451]
[1735688463859,0.7551,3340.7,3339.5,0.354451]
[1735688464071,0.06405797,3339.9,3339.6,0.93516415]
[1735688464274,0.7551,3340.7,3339.6,0.93516415]
[1735688464778,0.06264161,3340.6,3339.6,0.93516415]
[1735688465577,0.06264161,3340.6,3339.8,2.99419]
[1735688470101,0.06264161,3340.6,3340.2,0.55]
[1735688470260,0.06264161,3340.6,3340.5,3.76826]
[1735688470460,0.06264161,3340.6,3340.5,4.499465]
[1735688470674,0.7551,3341.1,3340.7,2.99331]
[1735688471075,0.06326835,3341.0,3340.7,2.99331]
[1735688471265,0.06326835,3341.0,3340.5,4.499415]
[1735688471475,0.7551,3341.1,3340.5,4.499415]
[1735688471681,0.7551,3341.1,3340.6,0.7493135]
[1735688472081,0.06334767,3341.0,3340.6,0.7493135]
[1735688472508,0.06334767,3341.0,3340.3,2.99372]
[1735688473007,0.7551,3341.1,3340.3,2.99372]
[1735688473792,0.06367447,3341.0,3340.3,2.99372]
[1735688475414,0.7551,3340.9,3340.1,2.99387]
[1735688475705,2.99331,3340.8,3339.9,2.99409]
[1735688475862,2.99331,3340.8,3340.0,0.376879]
[1735688475863,0.7551,3340.7,3340.0,0.376879]
[1735688476204,2.78611351,3340.6,3339.6,1.64277535]
[1735688476425,0.7551,3340.5,3339.6,1.2576112]
[1735688476629,0.7551,3340.5,3339.5,5.0267512]
[1735688476809,0.06366787,3340.4,3339.5,5.0267512]
[1735688477014,0.7551,3340.3,3339.6,0.69136569]
[1735688477309,0.06174289,3340.2,3339.6,0.69136569]
[1735688477514,0.7551,3340.3,3339.6,0.69136569]
[1735688477678,0.06174195,3340.2,3339.6,0.69136569]
[1735688477881,0.7551,3340.3,3339.6,0.69136569]
[1735688478082,0.06174289,3340.2,3339.8,2.99418]
[1735688478518,0.06174289,3340.2,3339.9,0.8269]
[1735688478719,0.06174289,3340.2,3340.1,2.99392]
[1735688478923,0.06174289,3340.2,3340.1,3.54392]
[1735688479122,1.87746476,3340.6,3340.5,2.99356]
[1735688479327,2.63016476,3340.9,3340.5,3.430606]
[1735688479889,1.87746476,3340.9,3340.6,2.99344]
[1735688480224,1.87746476,3340.9,3340.5,0.437046]
[1735688480399,0.7527,3341.2,3340.7,2.99331]
[1735688480596,0.06208744,3340.8,3340.7,2.99331]
[1735688480928,0.7527,3341.2,3340.7,3.3363456]
[1735688481425,0.05999807,3341.1,3340.7,3.3363456]
[1735688483504,0.05999807,3341.1,3340.8,2.99328]
[1735688484436,0.05999807,3341.1,3340.8,3.82018]
[1735688484743,0.0602349,3341.0,3340.8,3.82018]
[1735688484916,0.0602349,3341.0,3340.9,0.53623386]
[1735688485443,0.7527,3341.5,3340.9,0.53623386]
[1735688485647,0.0602349,3341.0,3340.9,0.53623386]
[1735688485803,0.7527,3341.5,3340.9,0.53623386]
[1735688486004,0.7527,3341.5,3340.6,1.199123]
[1735688486005,0.06025274,3341.0,3340.6,1.199123]
[1735688486218,0.7527,3341.5,3340.6,1.199123]
[1735688486543,0.06021514,3340.9,3340.6,4.192543]
[1735688486724,0.7527,3341.5,3340.6,2.99342]